bitfinex/quotes_ETHUSD_20230703
["timestamp","ask_amount","ask_price","bid_price","bid_amount"]
[1688411577166,21.9692386,1967.2,1967.1,0.00337789]
[1688411577490,25.5052311,1967.2,1967.1,0.00337789]
[1688411577665,25.50591329,1967.2,1967.1,0.00337789]
[1688411577833,22.76914989,1967.2,1967.1,0.00337789]
[1688411578714,21.9692386,1967.2,1967.1,0.00337789]
[1688411580019,22.4692386,1967.2,1967.1,0.00337789]
[1688411582151,22.4692386,1967.2,1967.0,1.3094352]
[1688411582353,4.33504056,1967.1,1967.0,1.3094352]
[1688411582558,17.09619006,1967.1,1967.0,1.3094352]
[1688411589056,17.09619006,1967.1,1967.0,1.31262454]
[1688411591012,14.5374019,1967.1,1967.0,1.31262454]
[1688411591189,5.1357195,1967.1,1967.0,1.31262454]
[1688411591401,5.0835,1967.2,1967.0,6.39650454]
[1688411592313,10.16652,1967.3,1967.0,11.48038454]
[1688411593180,5.08325,1967.3,1967.0,11.48038454]
[1688411593420,10.16601,1967.4,1967.0,16.84796799]
[1688411593771,10.16601,1967.4,1967.0,15.55396799]
[1688411598869,5.08297,1967.4,1967.0,15.55396799]
[1688411599117,10.96537129,1967.5,1967.1,1.81]
[1688411599300,5.88260129,1967.5,1967.2,12.7083]
[1688411599619,5.88260129,1967.5,1967.2,14.16013]
[1688411599620,5.08269,1967.5,1967.2,14.16013]
[1688411599819,10.16553,1967.5,1967.2,11.61845]
[1688411600171,10.16553,1967.5,1967.3,0.00316302]
[1688411601120,10.16553,1967.5,1967.2,10.04293676]
[1688411601410,10.16553,1967.5,1967.4,0.00315426]
[1688411602173,10.16553,1967.5,1967.2,10.04293676]
[1688411603229,10.16553,1967.5,1967.3,0.00304137]
[1688411608171,14.05911331,1967.5,1967.3,0.00304137]
[1688411608472,23.55040649,1967.4,1967.3,0.00304137]
[1688411609029,24.05040649,1967.4,1967.0,1.3094352]
[1688411609219,12.7604995,1967.2,1967.0,1.3094352]
[1688411609420,1.27604995,1967.1,1967.0,1.3094352]
[1688411609663,11.44328995,1967.1,1967.0,1.3094352]
[1688411610189,11.44328995,1967.1,1967.0,1.31250116]
[1688411610325,13.98509995,1967.1,1967.0,1.31250116]
[1688411612444,12.70905,1967.1,1967.0,1.31250116]
[1688411613924,12.70905,1967.1,1967.0,1.28080209]
[1688411614126,12.74074906,1967.1,1967.0,1.28080209]
[1688411623998,10.19893906,1967.1,1967.0,1.28080209]
[1688411624194,5.11531906,1967.1,1967.0,1.28080209]
[1688411624501,5.11199882,1967.1,1967.0,6.36468209]
[1688411624701,5.08362,1967.1,1967.0,6.36468209]
[1688411625039,5.08362,1967.1,1967.0,1.28080209]
[1688411625040,10.16724,1967.1,1967.0,1.28080209]
[1688411625196,10.19893906,1967.1,1967.0,1.28080209]
[1688411625599,10.19893906,1967.1,1967.0,1.27287732]
[1688411626018,10.16724,1967.1,1967.0,1.27287732]
[1688411626236,10.19431295,1967.1,1967.0,1.27287732]
[1688411626398,5.08362,1967.1,1967.0,1.27287732]
[1688411626926,10.965894,1967.3,1967.0,11.44063732]
[1688411627135,5.882584,1967.3,1967.0,11.44063732]
[1688411627316,5.882274,1967.4,1967.0,15.38084605]
[1688411628645,0.799314,1967.4,1967.0,15.38084605]
[1688411628845,1.06639883,1967.6,1967.2,1.81]
[1688411628846,0.799314,1967.6,1967.2,1.81]
[1688411629065,0.799314,1967.6,1967.3,12.70762]
[1688411629222,0.799314,1967.6,1967.3,14.159382]
[1688411629555,6.14858883,1967.7,1967.3,14.159382]
[1688411629556,10.963724,1967.7,1967.3,14.159382]
[1688411629762,5.881504,1967.7,1967.3,14.159382]
[1688411630056,0.799314,1967.7,1967.3,14.159382]
[1688411630357,0.799314,1967.7,1967.5,10.16518]
[1688411630925,5.881384,1967.7,1967.5,10.16518]
[1688411631127,0.799314,1967.7,1967.6,0.00301334]
[1688411631319,0.799314,1967.7,1967.6,5.08534334]
[1688411631645,6.94765283,1967.8,1967.6,5.08534334]
[1688411631843,5.881254,1967.8,1967.6,5.08534334]
[1688411632630,0.799314,1967.8,1967.6,10.16767334]
[1688411633255,0.799314,1967.9,1967.7,0.48]
[1688411633465,6.14704883,1968.3,1967.8,12.70452]
[1688411633662,6.41339853,1968.4,1968.0,1.796]
[1688411633663,11.22722883,1968.4,1968.0,1.796]
[1688411633869,6.14640883,1968.5,1968.1,12.7025]
[1688411634166,2.92257191,1968.4,1968.1,12.70546952]
[1688411635049,6.14643883,1968.5,1968.1,12.70546952]
[1688411635362,6.33596374,1968.5,1968.1,12.70546952]
[1688411635533,11.41600374,1968.5,1968.1,12.70546952]
[1688411639693,7.91478816,1968.4,1968.1,0.00296952]
[1688411639982,7.91478816,1968.4,1968.1,0.00032793]
[1688411639983,10.16104,1968.3,1968.1,0.00032793]
[1688411640214,15.26008816,1968.3,1968.1,0.00286792]
[1688411640339,1.52600882,1968.2,1968.1,0.00286792]
[1688411640537,11.68756882,1968.2,1968.1,0.00286792]
[1688411641240,10.16131,1968.3,1968.1,5.08104]
[1688411641446,10.16132,1968.3,1968.0,11.97237]
[1688411641649,10.16132,1968.3,1968.1,5.08101]
[1688411642153,10.16132,1968.3,1968.2,0.00286088]
[1688411643187,10.16132,1968.3,1968.1,5.08101]
[1688411643886,10.16132,1968.3,1968.1,5.081]
[1688411644177,10.16132,1968.3,1968.2,0.00295446]
[1688411644602,5.856,1967.4,1967.1,1.016886]
[1688411644880,5.856,1967.4,1967.0,1.26981136]
[1688411644881,17.83941111,1967.3,1967.0,1.26981136]
[1688411645085,5.356,1967.2,1967.0,1.26981136]
[1688411645278,15.31993766,1967.1,1967.0,1.26981136]
[1688411645764,20.67593766,1967.1,1967.0,1.26981136]
[1688411646357,12.7611495,1967.1,1967.0,1.26981136]
[1688411647136,12.7611495,1967.1,1967.0,1.27373743]
[1688411650099,12.7611495,1967.1,1967.0,1.26981136]
[1688411654521,12.7611495,1967.1,1967.0,3.06581136]
[1688411654729,12.7611495,1967.1,1967.0,3.3723925]
[1688411655042,12.7611495,1967.1,1967.0,1.26981136]
[1688411655236,12.75766924,1967.1,1967.0,1.27360716]
[1688411655793,10.21585924,1967.1,1967.0,1.27360716]
[1688411655992,0.04861924,1967.1,1967.0,1.75360716]
[1688411656196,5.13223924,1967.1,1967.0,1.75360716]
[1688411656431,0.04861924,1967.1,1967.0,6.83748716]
[1688411656617,0.04861924,1967.2,1967.0,8.20923388]
[1688411656829,0.04861924,1967.2,1967.1,1.81]
[1688411657027,5.08322,1967.3,1967.1,1.81]
[1688411657198,5.08322,1967.3,1967.1,6.89734815]
[1688411657520,5.08322,1967.3,1967.1,1.81377815]
[1688411657730,5.08322,1967.3,1967.1,3.32407177]
[1688411658709,5.08322,1967.3,1967.1,8.40765177]
[1688411660510,10.16592,1967.4,1967.1,13.49127177]
[1688411660712,5.08244,1967.6,1967.3,1.81]
[1688411660913,5.08244,1967.6,1967.5,1.81]
[1688411660914,5.08234,1967.6,1967.5,1.81]
[1688411661304,5.08227,1967.7,1967.5,1.81]
[1688411661506,10.16452,1967.7,1967.5,1.81]
[1688411662158,10.16452,1967.7,1967.6,0.00371232]
[1688411662665,5.08225,1967.7,1967.6,0.00371232]
[1688411662819,5.08225,1967.7,1967.6,0.69333955]
[1688411663166,5.08196,1967.8,1967.6,5.77566955]
[1688411663167,10.1639,1967.8,1967.6,5.77566955]
[1688411665362,10.1639,1967.8,1967.6,0.00371232]
[1688411668662,10.1639,1967.8,1967.6,5.08602232]
[1688411668973,5.08194,1967.8,1967.6,5.08602232]
[1688411669160,5.08194,1967.8,1967.6,10.16835232]
[1688411669542,5.08194,1967.8,1967.6,5.08602232]
[1688411672038,5.08194,1967.8,1967.6,10.16835232]
[1688411673263,5.08194,1967.8,1967.6,5.08602232]
[1688411673777,5.08191,1967.8,1967.6,5.08602232]
[1688411674606,10.16372,1967.8,1967.6,5.08602232]
[1688411675520,12.70462,1967.8,1967.6,0.00371232]
[1688411675663,0.03402881,1967.7,1967.6,0.00371232]
[1688411675863,12.73919881,1967.7,1967.6,0.00371232]
[1688411676167,12.70517,1967.7,1967.3,3.0]
[1688411676363,0.02412883,1967.6,1967.3,3.0]
[1688411676591,5.08259,1967.5,1967.3,8.0831]
[1688411676900,10.16536,1967.5,1967.3,8.0831]
[1688411677266,10.1892067,1967.5,1967.4,0.00388626]
[1688411677466,5.08259,1967.5,1967.4,0.00388626]
[1688411678168,5.10664164,1967.5,1967.4,0.00388626]
[1688411678368,5.08259,1967.5,1967.4,0.00388626]
[1688411678697,5.10643198,1967.5,1967.4,0.00388626]
[1688411678897,5.08259,1967.5,1967.4,5.08673626]
[1688411680480,10.16495,1967.6,1967.4,5.08673626]
[1688411685003,0.01632181,1967.9,1967.4,0.00388626]
[1688411685301,5.08247,1967.6,1967.4,5.08673626]
[1688411689017,10.16494,1967.6,1967.4,5.08673626]
[1688411690810,0.02376618,1967.5,1967.4,5.08673626]
[1688411691614,10.16494,1967.6,1967.4,5.08673626]
[1688411695718,10.16494,1967.6,1967.4,0.00388626]
[1688411695931,0.03488731,1967.5,1967.4,0.00388626]
[1688411696078,12.74135731,1967.5,1967.4,0.00388626]
[1688411697182,12.74135731,1967.5,1967.0,9.35368136]
[1688411697481,12.74135731,1967.5,1967.0,14.43755136]
[1688411697689,12.74135731,1967.5,1967.0,9.35368136]
[1688411698204,12.74135731,1967.5,1967.1,0.00377815]
[1688411699211,12.74135731,1967.5,1967.1,5.08731815]
[1688411700037,12.69135731,1967.5,1967.1,5.08731815]
[1688411700329,5.0831,1967.3,1967.1,5.08731815]
[1688411700796,0.00854409,1967.2,1967.1,5.08731815]
[1688411701303,0.00617038,1967.2,1967.1,5.08731815]
[1688411701485,5.08336,1967.2,1967.1,0.00377815]
[1688411701688,5.0831,1967.3,1967.1,0.00377815]
[1688411701896,0.00738839,1967.2,1967.1,5.08739815]
[1688411702221,5.08336,1967.2,1967.1,0.00377815]
[1688411702386,5.0831,1967.3,1967.1,5.08728815]
[1688411703112,5.0831,1967.3,1967.1,10.17090815]
[1688411703304,10.16607,1967.4,1967.1,10.17090815]
[1688411706901,0.01373193,1967.2,1967.1,0.00377815]
[1688411707105,28.77528009,1967.2,1966.8,0.1]
[1688411707306,23.16720816,1966.9,1966.8,0.1]
[1688411707905,24.45720816,1966.9,1966.8,0.1]
[1688411708261,25.16077416,1966.9,1966.8,0.1]
[1688411711945,24.66077416,1966.9,1966.8,0.1]
[1688411712148,25.16077416,1966.9,1966.8,0.1]
[1688411713333,24.66077416,1966.9,1966.8,0.1]
[1688411713535,23.87077416,1966.9,1966.8,0.1]
[1688411714427,23.37077416,1966.9,1966.8,0.1]
[1688411715111,23.87077416,1966.9,1966.8,0.1]
[1688411715436,23.37077416,1966.9,1966.8,0.1]
[1688411715816,23.87077416,1966.9,1966.8,0.1]
[1688411717028,15.47270416,1966.9,1966.8,0.1]
[1688411717228,7.84649416,1966.9,1966.8,0.1]
[1688411717520,5.287706,1966.9,1966.8,0.1]
[1688411717868,10.16828,1966.9,1966.8,0.1]
[1688411719517,5.08414,1966.9,1966.8,0.1]
[1688411720126,5.08414,1966.9,1966.8,5.1844]
[1688411721763,5.08414,1966.9,1966.8,0.1]
[1688411722321,10.16828,1966.9,1966.8,0.1]
[1688411727249,5.08414,1966.9,1966.8,0.1]
[1688411729856,5.08403,1967.0,1966.8,0.1]
[1688411730064,5.08403,1967.0,1966.8,5.1844]
[1688411730263,5.08403,1967.0,1966.8,10.2688]
[1688411730925,5.08372,1967.1,1966.8,10.2688]
[1688411731158,12.72624816,1967.1,1966.8,10.2688]
[1688411731965,5.08372,1967.1,1966.8,11.54991]
[1688411732134,5.08347,1967.2,1966.8,15.38411]
[1688411733228,10.16699,1967.2,1966.8,15.38411]
[1688411734038,12.70867,1967.2,1966.8,12.84191]
[1688411734456,12.70867,1967.2,1966.8,11.54991]
[1688411736544,10.16699,1967.2,1966.8,11.54991]
[1688411736746,10.16699,1967.2,1966.9,1.154991]
[1688411737040,10.16699,1967.2,1967.0,5.08388]
[1688411738886,10.16699,1967.2,1966.9,11.323001]
[1688411742491,10.16699,1967.2,1966.9,6.238981]
[1688411744990,12.70867,1967.2,1966.9,6.238981]
[1688411747688,5.08347,1967.2,1967.0,5.7075981]
[1688411747895,5.083,1967.4,1967.1,0.02720448]
[1688411748125,5.08264,1967.5,1967.1,5.0835]
[1688411748243,5.0827,1967.5,1967.2,0.02483499]
[1688411748447,6.54590528,1967.6,1967.3,5.0831]
[1688411748448,10.1649,1967.6,1967.3,5.0831]
[1688411748698,5.08263,1967.5,1967.3,5.0831]
[1688411748983,5.08263,1967.5,1967.3,6.3681]
[1688411749591,5.08263,1967.5,1967.3,11.4512]
[1688411750588,5.08243,1967.6,1967.3,11.4512]
[1688411750793,5.08243,1967.6,1967.4,1.14512]
[1688411751092,5.08243,1967.6,1967.4,12.60259]
[1688411751490,5.08243,1967.6,1967.5,0.01439978]
[1688411751664,5.08243,1967.6,1967.4,11.31059]
[1688411752663,5.08221,1967.7,1967.4,11.31059]
[1688411754969,10.16439,1967.7,1967.4,11.31059]
[1688411755868,10.16439,1967.7,1967.4,10.16547]
[1688411756566,5.08218,1967.7,1967.4,10.16547]
[1688411756766,5.08197,1967.8,1967.4,10.16547]
[1688411756968,5.08197,1967.8,1967.5,0.01276527]
[1688411757170,5.08197,1967.8,1967.5,5.08256]
[1688411757368,10.16389,1967.8,1967.5,5.08256]
[1688411758512,5.08192,1967.8,1967.5,5.08256]
[1688411758672,5.08192,1967.8,1967.5,5.817776]
[1688411758868,5.08192,1967.8,1967.5,10.900366]
[1688411759104,5.08192,1967.8,1967.5,5.817776]
[1688411759985,10.16384,1967.8,1967.5,5.817776]
[1688411760687,5.08192,1967.8,1967.5,5.817776]
[1688411761508,5.08181,1967.8,1967.5,5.817776]
[1688411762026,5.08181,1967.8,1967.5,5.08256]
[1688411762486,10.16362,1967.8,1967.5,5.08256]
[1688411762690,10.16362,1967.8,1967.4,7.3523]
[1688411762919,10.16362,1967.8,1967.5,0.48]
[1688411764488,12.70452,1967.8,1967.5,0.48]
[1688411764931,12.70452,1967.8,1967.4,2.2696]
[1688411765294,20.34375193,1967.6,1966.8,0.1]
[1688411765494,12.70762,1967.4,1966.9,2.3793]
[1688411765739,15.26640816,1967.4,1966.9,7.46332]
[1688411766095,0.00855204,1967.3,1966.9,7.46332]
[1688411766309,10.16679,1967.2,1966.9,7.46332]
[1688411767140,5.08338,1967.2,1967.0,5.08387]
[1688411767436,10.16651,1967.3,1967.0,10.16775]
[1688411767609,5.08323,1967.3,1967.0,10.16775]
[1688411767989,10.1665,1967.3,1967.0,10.16775]
[1688411769296,12.70805,1967.3,1967.0,5.08387]
[1688411770190,12.70805,1967.3,1966.9,7.46338]
[1688411770792,5.08362,1967.1,1966.9,7.46338]
[1688411770948,5.08362,1967.1,1966.9,5.08408]
[1688411771153,10.16724,1967.1,1966.8,0.1]
[1688411771354,10.16724,1967.1,1966.8,5.18426]
[1688411773516,10.16724,1967.1,1966.8,6.756976]
[1688411773712,10.16649,1967.3,1966.9,1.772]
[1688411773872,5.08262,1967.5,1967.0,14.00158]
[1688411774054,10.16541,1967.5,1967.1,1.772]
[1688411774259,2.54116,1967.6,1967.2,10.16663]
[1688411774260,5.08244,1967.6,1967.2,10.16663]
[1688411774455,5.0826,1967.5,1967.2,12.70831]
[1688411774797,5.08259,1967.5,1967.3,1.270831]
[1688411775001,5.08259,1967.5,1967.3,6.353731]
[1688411775175,5.08259,1967.5,1967.3,11.436831]
[1688411776465,5.08259,1967.5,1967.3,6.353731]
[1688411776797,10.16496,1967.6,1967.3,11.436831]
[1688411777003,10.16496,1967.6,1967.4,6.2264631]
[1688411778464,10.16496,1967.6,1967.4,5.08278]
[1688411779432,5.356,1967.5,1966.8,1.7857928]
[1688411779715,0.5,1966.6,1966.5,0.1]
[1688411779860,0.5,1966.6,1966.4,0.1]
[1688411779861,25.69667,1966.5,1966.4,0.1]
[1688411780058,32.46352112,1966.5,1966.4,0.1]
[1688411780260,5.356,1966.3,1966.2,0.0599449]
[1688411780517,23.56460796,1966.3,1966.2,0.0599449]
[1688411780806,20.61306,1966.3,1966.2,0.0599449]
[1688411780990,21.89906,1966.3,1966.2,0.0599449]
[1688411781372,24.25790156,1966.3,1966.2,0.0599449]
[1688411782775,22.102689,1966.3,1966.2,0.0599449]
[1688411784510,20.816689,1966.3,1966.2,0.0599449]
[1688411784671,15.460689,1966.3,1966.2,0.0599449]
[1688411785768,5.289319,1966.3,1966.2,0.0599449]
[1688411785969,10.17105,1966.4,1966.2,0.0599449]
[1688411786266,5.08546,1966.4,1966.2,0.0599449]
[1688411786479,5.08546,1966.4,1966.2,0.70374839]
[1688411787208,10.17105,1966.4,1966.2,0.70374839]
[1688411788296,2.54237,1966.7,1966.2,0.70374839]
[1688411788498,5.08528,1966.5,1966.2,11.5237649]
[1688411789811,5.08528,1966.5,1966.2,10.2317649]
[1688411790010,5.08505,1966.6,1966.2,12.7747349]
[1688411790572,5.08521,1966.5,1966.2,12.7747349]
[1688411791781,5.08521,1966.5,1966.2,10.2317649]
[1688411792086,5.08521,1966.5,1966.3,1.02317649]
[1688411792286,5.08521,1966.5,1966.3,6.10885649]
[1688411793016,10.17042,1966.5,1966.3,6.10885649]
[1688411794338,5.08521,1966.5,1966.3,6.10885649]
[1688411794617,12.71296,1966.5,1966.2,0.0599449]
[1688411799555,15.27174816,1966.5,1966.2,0.0599449]
[1688411801314,2.55878816,1966.4,1966.2,0.0599449]
[1688411801554,12.71422,1966.3,1966.2,0.0599449]
[1688411801942,1.812,1966.7,1966.2,0.0599449]
[1688411802268,5.08482,1966.7,1966.2,13.2548149]
[1688411802413,5.08482,1966.7,1966.4,10.17078]
[1688411802414,10.16964,1966.7,1966.4,10.17078]
[1688411804348,5.08482,1966.7,1966.4,10.17078]
[1688411808173,5.08482,1966.7,1966.4,10.0436829]
[1688411810767,5.08421,1966.9,1966.4,12.5863929]
[1688411813701,10.16843,1966.9,1966.4,12.5863929]
[1688411813862,10.16843,1966.9,1966.4,14.15848034]
[1688411819576,5.08421,1966.9,1966.4,14.15848034]
[1688411821519,12.71042,1966.9,1966.4,14.15848034]
[1688411822297,10.16835,1966.9,1966.4,14.15848034]
[1688411825849,12.71042,1966.9,1966.4,12.5863929]
[1688411826031,12.71042,1966.9,1966.2,9.7615149]
[1688411826232,0.01373193,1966.8,1966.2,4.6757449]
[1688411826438,10.16955,1966.7,1966.3,5.08547]
[1688411826608,0.01373193,1966.6,1966.3,5.08547]
[1688411826807,0.01373193,1966.6,1966.3,10.171]
[1688411827107,10.16955,1966.7,1966.3,10.171]
[1688411827518,0.00584794,1966.6,1966.3,10.171]
[1688411827720,5.08469,1966.7,1966.3,10.171]
[1688411829258,10.16944,1966.7,1966.2,7.5240549]
[1688411829417,0.01337464,1966.6,1966.2,7.5240549]
[1688411829754,5.08497,1966.6,1966.2,7.5240549]
[1688411830056,10.16994,1966.6,1966.2,15.1100049]
[1688411830465,5.08497,1966.6,1966.2,15.1100049]
[1688411832670,10.16988,1966.6,1966.2,15.1100049]
[1688411833481,10.16988,1966.6,1966.2,14.1100049]
[1688411833978,10.16988,1966.6,1966.2,16.6529749]
[1688411835249,10.16988,1966.6,1966.2,18.57256939]
[1688411835250,5.08491,1966.6,1966.2,18.57256939]
[1688411837952,5.10120181,1966.7,1966.2,18.57256939]
[1688411837953,5.10113181,1966.7,1966.2,18.57256939]
[1688411838166,5.08481,1966.7,1966.2,18.57256939]
[1688411839484,10.16913,1966.8,1966.2,18.57256939]
[1688411839862,5.08456,1966.8,1966.2,18.57256939]
[1688411840162,5.08456,1966.8,1966.4,10.1706]
[1688411840359,8.42535135,1966.9,1966.5,0.01407524]
[1688411840360,10.96755135,1966.9,1966.5,0.01407524]
[1688411840780,10.96755135,1966.9,1966.6,5.08486]
[1688411843801,13.50962135,1966.9,1966.6,5.08486]
[1688411844905,10.96755135,1966.9,1966.6,5.08486]
[1688411845804,13.50962135,1966.9,1966.6,5.08486]
[1688411848568,0.79898135,1966.9,1966.6,10.16977]
[1688411848762,0.79898135,1966.9,1966.6,13.729197]
[1688411850886,0.79898135,1967.0,1966.6,13.729197]
[1688411851514,5.88287135,1967.0,1966.6,13.729197]
[1688411853722,0.79898135,1967.0,1966.6,13.729197]
[1688411854595,0.79898135,1967.0,1966.8,10.1688]
[1688411857009,0.79898135,1967.0,1966.8,12.711]
[1688411857350,0.79898135,1967.0,1966.9,0.0128533]
[1688411857520,0.79898135,1967.0,1966.9,10.16828]
[1688411858111,0.79898135,1967.0,1966.9,12.71035]
[1688411858325,1.86428981,1967.1,1966.9,12.71035]
[1688411860370,0.79898135,1967.1,1966.9,10.16828]
[1688411861151,5.88261135,1967.1,1966.9,10.16828]
[1688411861774,1.86428981,1967.1,1966.9,10.16828]
[1688411861979,0.79898135,1967.1,1966.9,10.16828]
[1688411863931,0.79898135,1967.1,1966.9,12.66828]
[1688411864941,5.88263135,1967.1,1966.9,12.66828]
[1688411869173,8.44141951,1967.1,1966.9,2.5]
[1688411869397,0.79898135,1967.0,1966.9,2.5]
[1688411869618,13.50868135,1967.0,1966.9,2.5]
[1688411869921,13.77500846,1967.0,1966.9,2.5]
[1688411870266,15.06800846,1967.0,1966.9,2.5]
[1688411870472,15.86814038,1967.0,1966.9,2.5]
[1688411871275,13.77500846,1967.0,1966.9,2.5]
[1688411887581,6.14918846,1967.0,1966.9,2.5]
[1688411887873,6.94980136,1967.0,1966.9,2.5]
[1688411888379,5.8844929,1967.0,1966.9,2.5]
[1688411889375,1.06742851,1967.5,1966.9,13.95185016]
[1688411889579,1.06742851,1967.7,1967.0,1.01836757]
[1688411889883,1.33135549,1968.0,1967.2,15.25002]
[1688411890107,13.07304481,1968.1,1967.5,12.7062]
[1688411890316,6.41246549,1968.1,1967.5,12.7062]
[1688411890528,6.41246549,1968.1,1967.6,1.27062]
[1688411890727,6.41246549,1968.1,1967.7,11.44395]
[1688411891211,1.33135549,1968.1,1967.7,13.98498]
[1688411891395,1.33135549,1968.2,1967.7,13.98498]
[1688411891594,1.33135549,1968.2,1967.8,1.293]
[1688411891794,1.33135549,1968.3,1967.9,12.70377]
[1688411891986,6.41166549,1968.4,1967.9,12.70377]
[1688411892189,11.49197549,1968.4,1967.9,14.67317]
[1688411893629,6.68135549,1968.3,1967.6,11.43503]
[1688411893835,10.16212,1968.1,1967.6,11.43503]
[1688411893984,10.16212,1968.1,1967.7,1.143503]
[1688411894187,10.16212,1968.1,1967.7,11.307433]
[1688411895212,10.16212,1968.1,1967.9,2.5]
[1688411895931,5.37832181,1968.4,1967.9,2.5]
[1688411896087,2.55878816,1968.3,1967.9,2.5]
[1688411896719,7.90878816,1968.3,1967.9,2.5]
[1688411897520,7.90878816,1968.3,1967.5,3.2524]
[1688411897688,7.90878816,1968.3,1967.6,0.32524]
[1688411898900,2.55878816,1968.3,1967.6,0.32524]
[1688411899101,2.55878816,1968.3,1967.7,1.293]
[1688411899438,2.55878816,1968.3,1967.6,0.32524]
[1688411899439,5.76658116,1968.5,1967.8,1.293]
[1688411899729,2.55878816,1968.4,1967.8,1.293]
[1688411900352,2.55878816,1968.4,1967.8,3.199]
[1688411900493,2.55878816,1968.4,1967.9,0.3199]
[1688411904401,2.55878816,1968.4,1967.9,2.8199]
[1688411905615,0.41658116,1968.5,1967.9,2.5]
[1688411905616,2.55878816,1968.0,1967.9,2.5]
[1688411905821,5.35,1967.4,1966.9,0.02608182]
[1688411906146,8.4,1967.2,1966.3,2.53708093]
[1688411906362,12.20919733,1967.1,1966.3,2.53708093]
[1688411906516,14.06518333,1967.1,1966.3,2.0058]
[1688411906722,2.55878816,1967.0,1966.3,2.44771]
[1688411906958,12.56399485,1966.9,1966.3,2.44771]
[1688411907274,3.84078816,1966.8,1966.3,2.44771]
[1688411907569,2.55878816,1966.9,1966.3,2.44771]
[1688411907730,2.55878816,1966.9,1966.3,3.74071]
[1688411907929,2.55878816,1966.9,1966.4,0.374071]
[1688411908342,2.55878816,1966.9,1966.4,1.667071]
[1688411910366,2.55878816,1966.9,1966.3,2.44771]
[1688411910658,2.55878816,1966.9,1966.3,5.44771]
[1688411912049,2.55878816,1966.9,1966.3,6.74071]
[1688411912247,2.55878816,1966.9,1966.4,1.293]
[1688411912459,2.55878816,1966.9,1966.3,6.72771]
[1688411912649,2.55878816,1966.9,1966.4,0.672771]
[1688411914273,2.55878816,1966.9,1966.4,1.958771]
[1688411914879,2.55878816,1966.9,1966.4,4.458771]
[1688411916276,2.55878816,1966.9,1966.4,3.172771]
[1688411916637,2.55878816,1966.9,1966.4,0.672771]
[1688411921592,2.55878816,1966.9,1966.3,5.44771]
[1688411922976,2.55878816,1966.8,1966.2,2.4133]
[1688411923330,1.282,1966.7,1966.2,2.4133]
[1688411923485,3.84078816,1966.7,1966.2,2.4133]
[1688411925923,12.71258,1966.6,1966.2,7.4992]
[1688411926485,12.72890181,1966.6,1966.2,2.4133]
[1688411927078,16.57768997,1966.6,1966.2,2.4133]
[1688411927288,16.57768997,1966.6,1966.0,1.9519]
[1688411927583,15.28768997,1966.6,1966.0,1.9519]
[1688411927807,15.28768997,1966.6,1966.0,7.03834]
[1688411931287,12.71258,1966.6,1966.0,8.788894]
[1688411931487,12.71258,1966.6,1966.1,1.283]
[1688411931488,10.17008,1966.6,1966.1,1.283]
[1688411931687,12.71253,1966.6,1966.2,5.08582]
[1688411933787,5.08504,1966.6,1966.2,11.46477]
[1688411933992,2.54236,1966.7,1966.2,11.46477]
[1688411933993,5.08475,1966.7,1966.4,1.293]
[1688411934230,5.0848,1966.7,1966.4,6.37831]
[1688411934539,10.16914,1966.8,1966.6,0.01530847]
[1688411934698,10.16914,1966.8,1966.5,10.808111]
[1688411936543,5.48729202,1966.9,1966.5,14.635691]
[1688411936723,5.48729202,1966.9,1966.6,1.293]
[1688411936724,5.08414,1966.9,1966.6,1.293]
[1688411936898,5.08414,1966.9,1966.7,5.08465]
[1688411937093,5.08414,1966.9,1966.7,5.976658]
[1688411937337,5.08414,1966.9,1966.8,0.01924362]
[1688411938307,5.08414,1966.9,1966.8,5.10364362]
[1688411939118,10.16796,1967.0,1966.8,5.0844]
[1688411939319,10.58473337,1967.1,1966.9,0.02305356]
[1688411939496,5.08369,1967.1,1966.9,5.10717356]
[1688411939696,5.08362,1967.1,1966.9,5.08412]
[1688411940000,10.16724,1967.1,1967.0,0.01555557]
[1688411940229,5.08362,1967.1,1967.0,0.01555557]
[1688411940540,5.08353,1967.2,1967.0,0.01555557]
[1688411940833,10.16724,1967.1,1967.0,0.01555557]
[1688411941041,10.16724,1967.1,1966.9,5.08412]
[1688411941554,10.16724,1967.1,1967.0,0.01372283]
[1688411941857,10.16724,1967.1,1966.9,5.08412]
[1688411942056,10.16724,1967.1,1967.0,0.0140046]
[1688411943113,10.16724,1967.1,1966.9,5.08412]
[1688411944963,5.08362,1967.1,1966.9,5.08412]
[1688411945172,5.08362,1967.1,1967.0,0.01449813]
[1688411945868,5.08362,1967.1,1966.9,5.08412]
[1688411946072,5.08325,1967.3,1966.9,6.326862]
[1688411946273,5.08347,1967.2,1967.0,0.02393188]
[1688411946445,5.08347,1967.2,1967.1,5.08362]
[1688411946649,5.08347,1967.2,1967.0,10.19157188]
[1688411946851,5.08347,1967.2,1967.1,0.02393188]
[1688411947269,5.08347,1967.2,1967.0,5.08376]
[1688411947469,5.08347,1967.2,1967.1,0.01851512]
[1688411947852,5.08347,1967.2,1967.0,11.6913032]
[1688411948382,5.08347,1967.2,1967.1,0.01793343]
[1688411948562,5.08347,1967.2,1967.0,11.6913032]
[1688411949692,10.16703,1967.2,1967.0,6.6075232]
[1688411950183,2.55878816,1967.1,1967.0,5.08376]
[1688411950385,22.41602816,1967.1,1966.2,7.98006842]
[1688411950592,23.66783816,1967.1,1966.4,12.71354]
[1688411950879,0.01632181,1967.0,1966.4,10.17083]
[1688411951087,15.26961816,1966.9,1966.3,10.17108]
[1688411951284,15.26961816,1966.9,1966.3,5.08553]
[1688411951952,15.26961816,1966.9,1966.2,10.42582]
[1688411952266,15.26961816,1966.9,1966.3,3.0]
[1688411952879,15.26961816,1966.9,1966.3,8.08569]
[1688411953089,15.26961816,1966.9,1966.3,13.17138]
[1688411954184,15.26961816,1966.9,1966.3,14.45438]
[1688411954390,15.26961816,1966.9,1966.3,14.976815]
[1688411955735,15.26961816,1966.9,1966.3,17.519655]
[1688411957990,15.26961816,1966.9,1966.3,14.976815]
[1688411960151,15.26961816,1966.9,1966.3,17.519655]